lending/lending_fUSD_20260104
["ID","MTS","AMOUNT","RATE_DAILY","PERIOD"]
[400410235,1767526633117,200.0,0.00043697,30]
[400410243,1767526637235,1437.28,0.00016499,2]
[400410244,1767526639677,267.54802993,0.00016597,2]
[400410245,1767526641465,212.38126596,0.00016597,2]
[400410246,1767526642185,161.79341213,0.00016597,2]
[400410247,1767526657534,594.2092946,0.00016498,2]
[400410248,1767526681203,300.0,0.00016597,2]
[400410252,1767526693424,1200.0,0.00016597,2]
[400410264,1767526739580,340.0,0.00043697,90]
[400410265,1767526741193,300.0,0.00016597,2]
[400410266,1767526742173,550.0,0.00016597,2]
[400410267,1767526742606,300.0,0.00016597,2]
[400410268,1767526744483,178.25018072,0.00016498,2]
[400410269,1767526756179,1323.95261443,0.00016588,2]
[400410270,1767526756202,10000.01,0.00016588,2]
[400410271,1767526756226,9172.74184669,0.00016588,2]
[400410272,1767526764273,193.15825573,0.00016597,2]
[400410273,1767526770400,500.0,0.00016597,2]
[400410274,1767526770431,134.10989758,0.00016597,2]
[400410275,1767526770452,365.89010242,0.00016597,2]
[400410276,1767526770497,333.63605831,0.00016597,2]
[400410278,1767526776098,200.0,0.00016476,2]
[400410290,1767526788258,159.67108242,0.00016498,2]
[400410294,1767526793241,353.94902105,0.00016597,2]
[400410297,1767526800020,1000.0,0.00043707,30]
[400410299,1767526801230,1200.0,0.00016597,2]
[400410300,1767526801277,300.0,0.00016597,2]
[400410301,1767526801316,300.0,0.00016597,2]
[400410302,1767526801570,1000.0,0.00043707,30]
[400410303,1767526802227,1000.0,0.00043707,30]
[400410304,1767526802854,1000.0,0.00043707,30]
[400410305,1767526803468,290.0,0.00016598,2]
[400410306,1767526803515,1000.0,0.00043707,30]
[400410307,1767526804091,1000.0,0.00043707,30]
[400410308,1767526804395,2994.34,0.00016588,2]
[400410309,1767526804622,2994.34,0.00016588,2]
[400410310,1767526804721,1000.0,0.00043707,30]
[400410311,1767526805359,1000.0,0.00043707,30]
[400410312,1767526805408,500.0,0.00043707,120]
[400410313,1767526805652,500.0,0.00043707,120]
[400410314,1767526805799,164.98,0.00016588,2]
[400410315,1767526805891,500.0,0.00043707,120]
[400410318,1767526806134,500.0,0.00043707,120]
[400410319,1767526806304,1000.0,0.00043707,30]
[400410320,1767526806416,500.0,0.00043707,120]
[400410321,1767526806678,500.0,0.00043707,120]
[400410322,1767526806943,500.0,0.00043707,120]
[400410323,1767526807052,1000.0,0.00043707,30]
[400410324,1767526807183,586.26297746,0.00043707,120]
[400410325,1767526807740,1000.0,0.00043707,30]
[400410327,1767526808770,1000.0,0.00043707,30]
[400410328,1767526809447,1000.0,0.00043707,30]
[400410329,1767526810057,1000.0,0.00043707,30]
[400410330,1767526810707,1000.0,0.00043707,30]
[400410331,1767526811555,1000.0,0.00043707,30]
[400410332,1767526811616,249.66854508,0.00016597,2]
[400410333,1767526812153,1000.0,0.00043707,30]
[400410334,1767526813706,1000.0,0.00043707,30]
[400410337,1767526814340,1000.0,0.00043707,30]
[400410338,1767526814982,1000.0,0.00043707,30]
[400410339,1767526815735,1000.0,0.00043707,30]
[400410340,1767526816351,309.51178327,0.00043707,30]
[400410341,1767526818098,93.53519072,0.00016597,2]
[400410342,1767526818122,406.46480928,0.00016597,2]
[400410343,1767526818322,504.75468002,0.00016597,2]
[400410368,1767526851544,166.66,0.00016201,2]
[400410369,1767526851948,166.66,0.00016542,2]
[400410372,1767526860382,500.0,0.00016597,2]
[400410373,1767526860629,500.0,0.00016597,2]
[400410374,1767526860865,500.0,0.00016597,2]
[400410375,1767526861248,300.0,0.00016597,2]
[400410386,1767526881321,500.0,0.00016597,2]
[400410387,1767526881908,500.0,0.00016597,2]
[400410388,1767526882161,500.0,0.00016597,2]
[400410391,1767526893375,760.951,0.00016266,2]
[400410392,1767526893414,171.435,0.00016266,2]
[400410393,1767526894452,500.0,0.00016597,2]
[400410394,1767526894674,500.0,0.00016597,2]
[400410395,1767526894927,500.0,0.00016597,2]
[400410409,1767526921227,300.0,0.00016597,2]
[400410411,1767526922334,300.0,0.00016597,2]
[400410412,1767526922402,550.0,0.00016597,2]
[400410413,1767526925906,151.0,0.00016598,2]
[400410414,1767526926593,151.0,0.00016598,2]
[400410415,1767526927194,151.0,0.00016598,2]
[400410416,1767526927820,151.0,0.00016598,2]
[400410417,1767526928446,151.0,0.00016598,2]
[400410418,1767526929151,151.0,0.00016598,2]
[400410419,1767526929902,151.0,0.00016598,2]
[400410420,1767526930416,151.0,0.00016598,2]
[400410427,1767526931034,151.0,0.00016598,2]
[400410428,1767526931656,151.0,0.00016598,2]
[400410429,1767526932314,151.0,0.00016598,2]
[400410430,1767526932974,151.0,0.00016598,2]
[400410431,1767526934059,61.0845107,0.00016598,2]
[400410432,1767526934085,89.9154893,0.00016598,2]
[400410433,1767526934752,151.0,0.00016598,2]
[400410434,1767526935401,151.0,0.00016598,2]
[400410435,1767526936048,151.0,0.00016598,2]
[400410437,1767526936687,151.0,0.00016598,2]
[400410438,1767526937380,151.0,0.00016598,2]
[400410439,1767526937850,500.0,0.00016597,2]
[400410440,1767526937901,464.90394012,0.00016597,2]
[400410441,1767526937990,151.0,0.00016598,2]
[400410442,1767526938802,151.0,0.00016598,2]
[400410444,1767526959987,178.25018072,0.00016498,2]
[400410447,1767526969395,6488.02550635,0.00016498,2]
[400410448,1767526981660,4206.75036404,0.00016498,2]
[400410449,1767526984322,-300.0,0.00016597,2]
[400410450,1767526990687,-195.0,0.00016598,2]
[400410451,1767526990717,-300.0,0.00016598,2]
[400410461,1767526996997,-1200.0,0.00016597,2]
[400410466,1767527022454,-500.0,0.00016597,2]
[400410467,1767527022483,-500.0,0.00016597,2]
[400410468,1767527022511,-500.0,0.00016597,2]
[400410469,1767527022645,-5097.05018442,0.00016598,2]
[400410470,1767527022826,-10000.01,0.00016598,2]
[400410471,1767527023083,-10000.01,0.00016598,2]
[400410472,1767527023297,-10000.01,0.00016598,2]
[400410473,1767527028515,-10000.01,0.00016598,2]
[400410476,1767527050064,-300.0,0.00016597,2]
[400410477,1767527050095,-195.0,0.00016598,2]
[400410485,1767527071727,607.35958267,0.00016597,2]
[400410486,1767527074163,500.0,0.00016597,2]
[400410487,1767527074250,500.0,0.00016597,2]
[400410488,1767527074285,460.08704296,0.00016597,2]
[400410494,1767527101210,300.0,0.00016597,2]
[400410495,1767527101240,1200.0,0.00016597,2]
[400410497,1767527102161,550.0,0.00016597,2]
[400410498,1767527102515,300.0,0.00016597,2]
[400410503,1767527122722,4592.56337437,0.000161,2]
[400410504,1767527122745,10000.01,0.000161,2]
[400410505,1767527122769,5407.42662563,0.000161,2]
[400410506,1767527133253,500.0,0.00016597,2]
[400410507,1767527133757,500.0,0.00016597,2]
[400410509,1767527133787,500.0,0.00016597,2]
[400410515,1767527151309,500.0,0.00016597,2]
[400410516,1767527151756,500.0,0.00016597,2]
[400410517,1767527151982,500.0,0.00016597,2]
[400410518,1767527153249,500.0,0.00016597,2]
[400410519,1767527153491,500.0,0.00016597,2]
[400410520,1767527153832,500.0,0.00016597,2]
[400410521,1767527155960,92.58337437,0.00016597,2]
[400410522,1767527155985,407.41662563,0.00016597,2]
[400410523,1767527156198,500.0,0.00016597,2]
[400410524,1767527156448,500.0,0.00016597,2]
[400410527,1767527171842,1500.0,0.00016469,2]
[400410530,1767527191156,1524.64947797,0.00016498,2]
[400410531,1767527193168,5567.9438964,0.0001658,2]
[400410532,1767527193191,5963.0561036,0.0001658,2]
[400410537,1767527224642,259.59,8.235e-05,2]
[400410538,1767527224820,259.59,8.668e-05,2]
[400410539,1767527225008,259.59,9.101e-05,2]
[400410540,1767527225200,259.59,9.535e-05,2]
[400410541,1767527225414,259.59,9.968e-05,2]
[400410542,1767527225629,259.59,0.00010402,2]
[400410543,1767527225818,259.59,0.00010835,2]
[400410544,1767527226044,259.59,0.00011268,2]
[400410545,1767527226233,259.59,0.00011702,2]
[400410546,1767527226433,259.59,0.00012135,2]
[400410547,1767527226861,259.59,0.00012568,2]
[400410548,1767527226958,259.59,0.00013002,2]
[400410549,1767527227159,259.59,0.00013435,2]
[400410550,1767527227601,259.59,0.00013869,2]
[400410551,1767527227736,259.59,0.00014302,2]
[400410552,1767527228156,143.1038964,0.00014735,2]
[400410553,1767527228184,116.4861036,0.00014735,2]
[400410554,1767527228347,259.59,0.00015169,2]
[400410555,1767527228557,259.59,0.00015602,2]
[400410556,1767527228752,259.59,0.00016036,2]
[400410557,1767527228934,259.59,0.00016469,2]
[400410559,1767527231392,1763.081782,0.00016515,2]
[400410565,1767527280634,-100000.0,0.00016598,2]
[400410566,1767527282229,550.0,0.00016597,2]
[400410635,1767527293332,1200.0,0.00016597,2]
[400410639,1767527297919,500.0,0.00016597,2]
[400410640,1767527298155,500.0,0.00016597,2]
[400410641,1767527298389,605.27361039,0.00016597,2]
[400410656,1767527364296,14126.97394889,0.00016498,2]
[400410658,1767527368589,-4037.803031,0.00016498,2]
[400410660,1767527401446,300.0,0.00016497,2]
[400410661,1767527401476,300.0,0.00016497,2]
[400410662,1767527401504,1200.0,0.00016497,2]
[400410663,1767527407257,4922.35,0.00043707,30]
[400410668,1767527432144,-450.72894432,0.00016498,2]
[400410669,1767527432160,-3753.07156661,0.00016498,2]
[400410670,1767527432172,-7384.86883864,0.00016498,2]
[400410671,1767527432184,-1487.95536,0.00016498,2]
[400410673,1767527432196,-5879.39187,0.00016498,2]
[400410674,1767527432208,-510.0,0.00016498,2]
[400410675,1767527432219,-1650.0,0.00016498,2]
[400410676,1767527432232,-5802.07800707,0.00016498,2]
[400410677,1767527432243,-1372.97586918,0.00016498,2]
[400410678,1767527432363,-999.0,0.00016498,2]
[400410679,1767527432375,-116809.5573279,0.00016498,2]
[400410680,1767527432387,-57614.65882629,0.00016498,2]
[400410683,1767527434957,236.6691415,0.00016497,2]
[400410684,1767527434991,451.38401663,0.00016497,2]
[400410685,1767527435026,500.0,0.00016497,2]
[400410686,1767527435165,433.54524082,0.00016497,2]
[400410688,1767527438214,-2385.51073953,0.00016498,2]
[400410689,1767527438227,-2710.63629948,0.00016498,2]
[400410690,1767527438241,-1545.27221198,0.00016498,2]
[400410691,1767527438261,-2335.08328914,0.00016498,2]
[400410692,1767527438273,-10999.09543311,0.00016498,2]
[400410693,1767527438316,-26983.72745543,0.00016498,2]
[400410694,1767527438327,-597.61849702,0.00016498,2]
[400410695,1767527438339,-33461.30270531,0.00016498,2]
[400410696,1767527438351,-4236.0,0.00016498,2]
[400410878,1767527440304,-913.53,0.00016498,2]
[400410880,1767527440317,-607782.67690251,0.00016498,2]
[400410883,1767527440331,-8000.0,0.00016498,2]
[400410903,1767527440514,-271.64303514,0.00016498,2]
[400410905,1767527440526,-1026.25404047,0.00016498,2]
[400410910,1767527440568,-1182.08691465,0.00016498,2]
[400410928,1767527440727,-77728.30191733,0.00016498,2]
[400410930,1767527440737,-2500.0,0.00016498,2]
[400410932,1767527440747,-567.14001468,0.00016597,2]
[400410934,1767527440757,-163.1260951,0.00016598,2]
[400410936,1767527440770,-163.1260951,0.00016598,2]
[400410938,1767527440780,-163.1260951,0.00016598,2]
[400410940,1767527440790,-300.0,0.00016598,2]
[400410942,1767527440799,-195.0,0.00016598,2]
[400410944,1767527440809,-300.0,0.00016598,2]
[400410946,1767527440819,-2500.0,0.00016598,2]
[400410948,1767527440829,-630.52047785,0.00016598,2]
[400410950,1767527440839,-195.0,0.00016598,2]
[400410952,1767527440849,-300.0,0.00016598,2]
[400410954,1767527440859,-300.0,0.00016598,2]
[400410956,1767527440869,-195.0,0.00016598,2]
[400410958,1767527440879,-1422.84,0.00016646,2]
[400410960,1767527440890,-4037.80303092,0.00016654,2]
[400410962,1767527440901,-1266.97912113,0.00016763,2]
[400410964,1767527440911,-200.0,0.00016763,2]
[400410966,1767527440921,-200.0,0.00016793,2]
[400410968,1767527440931,-207.4,0.00016793,2]
[400410971,1767527440941,-215.0738,0.00016793,2]
[400410972,1767527440951,-223.0315306,0.00016793,2]
[400410973,1767527440963,-231.28369723,0.00016793,2]
[400410974,1767527440972,-239.84119403,0.00016793,2]
[400410975,1767527440982,-248.71531821,0.00016793,2]
[400410976,1767527440991,-257.91778498,0.00016793,2]
[400410977,1767527441001,-267.46074303,0.00016793,2]
[400410978,1767527441012,-277.35679052,0.00016793,2]
[400410979,1767527441022,-918.93,0.00016793,2]
[400410980,1767527441031,-4037.80303092,0.0001681,2]
[400410982,1767527441042,-166.66,0.00016883,2]
[400410984,1767527441052,-200.0,0.00016931,2]
[400410986,1767527441062,-4037.80303092,0.00016965,2]
[400410988,1767527441072,-15596.58014517,0.00016992,2]
[400410990,1767527441082,-42425.43378278,0.0001703,2]
[400410992,1767527441091,-166.66,0.0001705,2]
[400410994,1767527441101,-918.93,0.00017067,2]
[400410996,1767527441111,-500.0,0.00017099,2]
[400410998,1767527441120,-200.0,0.000171,2]
[400410999,1767527441129,-4037.80303092,0.00017121,2]
[400411000,1767527441139,-166.66,0.00017224,2]
[400411002,1767527441148,-200.0,0.00017271,2]
[400411004,1767527441161,-4037.80303092,0.00017277,2]
[400411006,1767527441170,-918.93,0.00017341,2]
[400411008,1767527441180,-482.22,0.00017341,2]
[400411010,1767527441190,-660.35,0.00017341,2]
[400411012,1767527441202,-482.22,0.00017341,2]
[400411013,1767527441211,-481.05,0.00017341,2]
[400411015,1767527441221,-1280.0,0.0001735,2]
[400411017,1767527441233,-1280.0,0.00017352,2]
[400411019,1767527441242,-500.0,0.00017432,2]
[400411021,1767527441251,-500.0,0.00017432,2]
[400411023,1767527441261,-500.0,0.00017432,2]
[400411025,1767527441270,-4037.80303092,0.00017433,2]
[400411027,1767527441280,-534.83,0.00017478,2]
[400411029,1767527441289,-1280.0,0.00017556,2]
[400411031,1767527441299,-166.66,0.00017565,2]
[400411033,1767527441309,-1280.0,0.00017577,2]
[400411035,1767527441319,-4037.80303092,0.00017588,2]
[400411037,1767527441328,-166.66,0.00017613,2]
[400411039,1767527441338,-207.76022546,0.00017614,2]
[400411042,1767527441358,-918.93,0.00017615,2]
[400411044,1767527441369,-545.72694858,0.0001764,2]
[400411046,1767527441379,-500.0,0.00017671,2]
[400411048,1767527441389,-1000.0,0.000177,2]
[400411050,1767527441399,-500.0,0.00017706,2]
[400411052,1767527441409,-935.0,0.00017709,2]
[400411054,1767527441419,-4037.80303092,0.00017744,2]
[400411056,1767527441429,-1280.0,0.00017795,2]
[400411058,1767527441438,-2480.18092,0.0001782,2]
[400411060,1767527441447,-2480.18092,0.0001782,2]
[400411062,1767527441458,-2480.18092,0.0001783,2]
[400411064,1767527441467,-2480.18093,0.0001786,2]
[400411066,1767527441477,-2480.18092,0.0001788,2]
[400411067,1767527441487,-918.93,0.00017889,2]
[400411069,1767527441497,-818.0844,0.00017899,2]
[400411071,1767527441507,-202.34852965,0.00017899,2]
[400411073,1767527441517,-500.0,0.00017899,2]
[400411075,1767527441527,-500.0,0.00017899,2]
[400411077,1767527441537,-595.20438035,0.00017899,2]
[400411079,1767527441546,-500.0,0.00017899,2]
[400411081,1767527441556,-10000.0,0.000179,2]
[400411083,1767527441566,-1000.0,0.000179,2]
[400411085,1767527441575,-339.67863184,0.000179,2]
[400411087,1767527441586,-4037.80303092,0.000179,2]
[400411089,1767527441595,-166.66,0.00017906,2]
[400411091,1767527441605,-2480.18092,0.0001791,2]
[400411093,1767527441615,-151.0,0.00017915,2]
[400411095,1767527441624,-151.0,0.00017932,2]
[400411096,1767527441635,-151.0,0.00017936,2]
[400411098,1767527441644,-600.88665179,0.0001798,2]
[400411100,1767527441654,-222.79183718,0.00017988,2]
[400411102,1767527441664,-222.79183718,0.0001799,2]
[400411104,1767527441674,-2230.0,0.00017998,2]
[400411106,1767527441683,-88885.9909721,0.00017998,2]
[400411108,1767527441693,-9442.8895971,0.00017998,2]
[400411111,1767527441707,-500.0,0.00017998,2]
[400411113,1767527441718,-500.0,0.00017998,2]
[400411114,1767527441728,-500.0,0.00017998,2]
[400411116,1767527441738,-500.0,0.00017998,2]
[400411118,1767527441748,-217570.7950133,0.00017999,2]
[400411120,1767527441758,-624.79134735,0.00017999,2]
[400411122,1767527441767,-666.0,0.00017999,2]
[400411124,1767527441776,-2000609.8387342,0.00018,2]
[400411126,1767527441786,-2510187.3577636,0.00018,2]
[400411349,1767527444123,-569304.20885652,0.00018,2]
[400411351,1767527444135,-626822.12705028,0.00018,2]
[400411353,1767527444147,-1242.13822015,0.00018,2]
[400411355,1767527444161,-378.96816864,0.00018,2]
[400411358,1767527444179,-2448.77003185,0.00018,2]
[400411437,1767527445025,-53381.07168516,0.00018,2]
[400411439,1767527445037,-19718.35014706,0.00018,2]
[400411543,1767527446238,-3612.96418096,0.00018,2]
[400411546,1767527446251,-944.03626932,0.00018,2]
[400411555,1767527446293,-2221.99159767,0.00018,2]
[400411557,1767527446305,-2297.64096379,0.00018,2]
[400411563,1767527446347,-1473.45,0.00018,2]
[400411574,1767527446401,-2819.69681835,0.00018,2]
[400411580,1767527446455,-906.62722999,0.00018,2]
[400412485,1767527467808,6700.0996,0.00016498,2]
[400412486,1767527470054,150.0,0.00016556,2]
[400412487,1767527474201,500.0,0.00016497,2]
[400412488,1767527474739,220.50523453,0.00016497,2]
[400412489,1767527488760,-250.0,0.00017,2]
[400412490,1767527500195,5000.0,0.00043707,120]
[400412491,1767527505115,-600.0,0.00017225,2]
[400412492,1767527505145,-1611.74005586,0.00017225,2]
[400412494,1767527513608,5000.0,0.00043707,30]
[400412495,1767527514674,5576.52988828,0.00016498,2]
[400412496,1767527514701,10000.01,0.00016498,2]
[400412497,1767527514727,10000.01,0.00016498,2]
[400412498,1767527514753,10000.01,0.00016498,2]
[400412499,1767527514778,10000.01,0.00016498,2]
[400412500,1767527514804,10000.01,0.00016498,2]
[400412501,1767527514830,10000.01,0.00016498,2]
[400412502,1767527514854,10000.01,0.00016498,2]
[400412503,1767527521500,5000.0,0.00043707,60]
[400412504,1767527521919,300.0,0.00016497,2]
[400412505,1767527525188,322.6107,0.00043707,120]
[400412506,1767527527432,200.0,0.00043707,120]
[400412507,1767527528406,151.0,0.00043707,65]
[400412508,1767527528731,151.0,0.00043707,65]
[400412510,1767527529051,151.0,0.00043707,65]
[400412511,1767527529360,151.0,0.00043707,65]
[400412512,1767527529647,151.0,0.00043707,65]
[400412513,1767527529954,151.0,0.00043707,65]
[400412514,1767527530260,151.0,0.00043707,65]
[400412515,1767527530548,151.0,0.00043707,65]
[400412516,1767527530846,183.233984,0.00043707,65]
[400412517,1767527531395,5000.0,0.00043707,90]
[400412518,1767527532796,200.0,0.00043707,120]
[400412519,1767527533408,200.0,0.00043707,120]
[400412520,1767527534381,200.0,0.00043707,120]
[400412521,1767527534995,151.0,0.00043707,120]
[400412522,1767527535636,151.0,0.00043707,120]
[400412523,1767527536398,151.0,0.00043707,120]
[400412524,1767527537042,151.0,0.00043707,120]
[400412525,1767527537657,151.0,0.00043707,120]
[400412526,1767527538271,151.0,0.00043707,120]
[400412527,1767527538909,151.0,0.00043707,120]
[400412528,1767527539536,151.0,0.00043707,120]
[400412529,1767527540175,151.0,0.00043707,120]
[400412530,1767527540796,151.0,0.00043707,120]
[400412532,1767527541412,151.0,0.00043707,120]
[400412537,1767527543552,500.0,0.00016497,2]
[400412543,1767527543842,316.72393898,0.00016497,2]
[400412553,1767527556498,200.0,0.00043707,120]
[400412554,1767527556973,177.31565734,0.00016398,2]
[400412555,1767527557112,200.0,0.00043707,120]
[400412557,1767527557845,200.0,0.00043707,120]
[400412558,1767527594496,1200.0,0.00016497,2]
[400412561,1767527629459,695.93,0.00013699,2]
[400412562,1767527633896,3328.05973503,0.00043707,30]
[400412563,1767527644328,550.0,0.00016497,2]
[400412564,1767527701237,177.0,0.00016497,2]
[400412565,1767527701287,300.0,0.00016497,2]
[400412566,1767527701391,1200.0,0.00016497,2]
[400412568,1767527709477,3634.0227279,0.00016398,2]
[400412569,1767527719820,151.0,0.00043707,65]
[400412570,1767527720116,151.0,0.00043707,65]
[400412571,1767527720433,151.0,0.00043707,65]
[400412572,1767527720729,151.0,0.00043707,65]
[400412573,1767527721014,151.0,0.00043707,65]
[400412574,1767527721320,151.0,0.00043707,65]
[400412575,1767527721623,162.256832,0.00043707,65]
[400412576,1767527725159,151.0,0.00043707,60]
[400412577,1767527725459,151.0,0.00043707,60]
[400412578,1767527734475,151.0,0.00043707,65]
[400412579,1767527734766,151.0,0.00043707,65]
[400412580,1767527735055,151.0,0.00043707,65]
[400412581,1767527745988,179.52751018,0.00016398,2]
[400412583,1767527767712,151.0,0.00043707,65]
[400412584,1767527768064,151.0,0.00043707,65]
[400412585,1767527768358,151.0,0.00043707,65]
[400412586,1767527768641,151.0,0.00043707,65]
[400412587,1767527822240,206.57971884,0.00016398,2]
[400412588,1767527822969,550.0,0.00016497,2]
[400412589,1767527846669,312.91044676,0.00016398,2]
[400412590,1767527846691,44.01215324,0.00016398,2]
[400412591,1767527847763,231.530174,0.00043707,65]
[400412592,1767527848238,231.530174,0.00043707,65]
[400412593,1767527848544,231.530174,0.00043707,65]
[400412594,1767527848834,231.530174,0.00043707,65]
[400412595,1767527849151,231.530174,0.00043707,65]
[400412596,1767527849461,231.530174,0.00043707,65]
[400412597,1767527849755,231.530174,0.00043707,65]
[400412598,1767527850068,231.530174,0.00043707,65]
[400412599,1767527850412,231.530174,0.00043707,65]
[400412600,1767527850831,231.530174,0.00043707,65]
[400412601,1767527850864,9400.01,0.00016497,2]
[400412602,1767527851150,231.530174,0.00043707,65]
[400412603,1767527851329,186.16778178,0.00016398,2]
[400412604,1767527851436,231.530174,0.00043707,65]
[400412605,1767527851728,231.530174,0.00043707,65]
[400412606,1767527852017,231.530174,0.00043707,65]
[400412607,1767527852312,231.530174,0.00043707,65]
[400412608,1767527852599,231.530174,0.00043707,65]
[400412609,1767527852895,231.530174,0.00043707,65]
[400412610,1767527853205,231.530174,0.00043707,65]
[400412611,1767527853495,231.530174,0.00043707,65]
[400412612,1767527853782,231.530166,0.00043707,65]
[400412613,1767527893944,369.82006498,0.00016497,2]
[400412614,1767527893974,830.17993502,0.00016497,2]
[400412615,1767527905023,6268.64536748,0.00016398,2]
[400412617,1767527941314,300.0,0.00016497,2]
[400412618,1767527951956,1000.0,0.00016493,2]
[400412619,1767527988112,1178.78,0.00016485,2]
[400412620,1767528001248,422.4046975,0.00016497,2]
[400412621,1767528001273,777.5953025,0.00016497,2]
[400412622,1767528001303,300.0,0.00016497,2]
[400412623,1767528002047,550.0,0.00016497,2]
[400412624,1767528002465,2500.0,0.00016398,2]
[400412625,1767528024209,500.0,0.00016497,2]
[400412626,1767528024260,500.0,0.00016497,2]
[400412627,1767528027760,500.0,0.00016497,2]
[400412628,1767528028004,500.0,0.00016497,2]
[400412629,1767528028282,624.79134735,0.00016497,2]
[400412630,1767528034285,500.0,0.00016497,2]
[400412631,1767528034520,500.0,0.00016497,2]
[400412632,1767528035739,500.0,0.00016497,2]
[400412633,1767528035795,500.0,0.00016497,2]
[400412634,1767528049657,567.14001468,0.00016497,2]
[400412637,1767528055658,595.20438035,0.00016497,2]
[400412640,1767528060846,500.0,0.00016497,2]
[400412642,1767528061072,500.0,0.00016497,2]
[400412643,1767528061316,497.77022115,0.00016497,2]
[400412650,1767528072420,500.0,0.00016497,2]
[400412652,1767528072775,500.0,0.00016497,2]
[400412657,1767528084897,500.0,0.00016497,2]
[400412658,1767528085133,500.0,0.00016497,2]
[400412662,1767528093492,715.10403647,0.00016168,2]
[400412663,1767528093516,269.33996353,0.00016168,2]
[400412664,1767528093546,158.248,0.00016168,2]
[400412666,1767528095640,3270.62045511,0.00016398,2]
[400412673,1767528112559,178.43,0.00013223,2]
[400412674,1767528112756,178.43,0.00015427,2]
[400412678,1767528118345,4106.2786,0.00016398,2]
[400412682,1767528124279,1838.66298136,0.00016398,2]
[400412683,1767528124302,10000.01,0.00016398,2]
[400412684,1767528124326,10000.01,0.00016398,2]
[400412685,1767528124348,4932.30240182,0.00016398,2]
[400412686,1767528124371,5232.30240182,0.00016398,2]
[400412687,1767528124394,5232.30240182,0.00016398,2]
[400412688,1767528124416,5232.30240182,0.00016398,2]
[400412689,1767528124442,5232.30240182,0.00016398,2]
[400412690,1767528124466,5232.30240182,0.00016398,2]
[400412692,1767528124488,5232.30240182,0.00016398,2]
[400412693,1767528124510,5232.30240182,0.00016398,2]
[400412694,1767528124531,5232.30240182,0.00016398,2]
[400412695,1767528124553,4883.99740226,0.00016398,2]
[400412697,1767528129852,175.68848696,0.00016398,2]
[400412698,1767528130523,151.0,0.00016498,2]
[400412699,1767528131128,151.0,0.00016498,2]
[400412700,1767528131737,151.0,0.00016498,2]
[400412701,1767528132350,151.0,0.00016498,2]
[400412703,1767528133025,151.0,0.00016498,2]
[400412704,1767528133683,151.0,0.00016498,2]
[400412705,1767528134340,151.0,0.00016498,2]
[400412706,1767528134972,151.0,0.00016498,2]
[400412708,1767528135834,151.0,0.00016498,2]
[400412709,1767528135902,500.0,0.00016497,2]
[400412710,1767528135940,500.0,0.00016497,2]
[400412711,1767528135974,612.24126555,0.00016497,2]
[400412712,1767528136198,151.0,0.00016498,2]